bitfinex/quotes_SOLUSD_20250818
["timestamp","ask_amount","ask_price","bid_price","bid_amount"]
[1755543114773,0.67000001,184.48,184.45,5.66819867]
[1755543114774,3.63934272,184.48,184.45,5.66819867]
[1755543115090,1e-08,184.48,184.46,39.01]
[1755543115584,1e-08,184.48,184.46,38.32]
[1755543116469,1e-08,184.48,184.46,43.74116485]
[1755543116666,1e-08,184.48,184.46,50.09936352]
[1755543119096,1e-08,184.48,184.47,0.69]
[1755543119769,1e-08,184.48,184.47,6.35819867]
[1755543120781,1e-08,184.48,184.47,11.77913432]
[1755543122478,1e-08,184.48,184.47,49.08534989]
[1755543122773,1e-08,184.48,184.47,54.75354856]
[1755543122976,1e-08,184.48,184.47,55.29564212]
[1755543123177,1e-08,184.48,184.47,49.62744345]
[1755543124085,1e-08,184.48,184.47,49.08534989]
[1755543124778,1e-08,184.48,184.47,87.40534989]
[1755543125672,1e-08,184.48,184.47,71.60913432]
[1755543126193,1e-08,184.48,184.47,65.94093565]
[1755543127074,1e-08,184.48,184.47,72.29913432]
[1755543127289,1e-08,184.48,184.47,87.40534989]
[1755543127573,1e-08,184.48,184.47,95.24610356]
[1755543127773,1e-08,184.48,184.47,89.57790489]
[1755543128177,1e-08,184.5,184.49,41.10621557]
[1755543128400,0.06,184.52,184.5,37.30621556]
[1755543128601,0.06,184.54,184.5,37.30621556]
[1755543128602,0.06,184.54,184.52,15.10621557]
[1755543128902,0.06,184.54,184.53,59.09441424]
[1755543129110,0.06,184.54,184.53,64.51358727]
[1755543129283,0.06,184.54,184.53,5.41917303]
[1755543129478,0.06,184.54,184.53,43.73917303]
[1755543129679,0.06,184.54,184.53,49.4073717]
[1755543130295,0.06,184.54,184.53,54.82634861]
[1755543130501,0.06,184.54,184.53,70.59256418]
[1755543132408,1e-08,184.55,184.53,70.59256418]
[1755543132608,1e-08,184.55,184.54,15.10621557]
[1755543132777,1e-08,184.55,184.54,62.34142615]
[1755543133183,1e-08,184.55,184.54,67.76030552]
[1755543133407,0.70000001,184.55,184.54,43.73887937]
[1755543133627,1e-08,184.55,184.54,65.93887936]
[1755543135111,1e-08,184.55,184.54,60.51999999]
[1755543135112,0.70000001,184.55,184.54,60.51999999]
[1755543135496,9.61521059,184.55,184.54,60.51999999]
[1755543135689,0.70000001,184.55,184.54,60.51999999]
[1755543137392,0.70000001,184.55,184.54,38.32]
[1755543137591,0.70000001,184.55,184.54,43.73887937]
[1755543139213,1e-08,184.55,184.54,43.73887937]
[1755543139731,1e-08,184.55,184.54,52.65408995]
[1755543140203,1e-08,184.55,184.54,53.31408995]
[1755543140404,1e-08,184.55,184.54,69.60294595]
[1755543141007,1e-08,184.55,184.54,68.94294595]
[1755543141236,1e-08,184.55,184.54,52.65408995]
[1755543141400,1e-08,184.55,184.54,43.73887937]
[1755543141609,1e-08,184.55,184.54,45.91072637]
[1755543142103,0.70000001,184.55,184.54,45.91072637]
[1755543142333,0.70000001,184.55,184.54,43.73887937]
[1755543143199,1e-08,184.55,184.54,43.73887937]
[1755543143522,1e-08,184.55,184.54,65.93887936]
[1755543143695,0.70000001,184.55,184.54,65.93887936]
[1755543144401,1e-08,184.55,184.54,65.93887936]
[1755543144603,1e-08,184.55,184.54,75.51408994]
[1755543145308,1e-08,184.55,184.54,90.62030551]
[1755543146231,0.06,184.59,184.57,15.10621557]
[1755543146415,0.06,184.59,184.58,62.36142615]
[1755543146622,0.06,184.59,184.58,84.56142613]
[1755543146841,0.06,184.59,184.58,85.22142613]
[1755543147207,0.06,184.59,184.58,90.63913119]
[1755543148814,0.06,184.59,184.58,81.06392061]
[1755543149135,0.06,184.59,184.58,89.95913119]
[1755543149540,0.76,184.59,184.58,74.85291562]
[1755543149741,0.76,184.59,184.58,65.93770504]
[1755543150042,0.76,184.59,184.58,60.51999998]
[1755543150646,0.76,184.59,184.58,65.93770504]
[1755543151337,0.76,184.59,184.58,60.51999998]
[1755543153133,0.06,184.59,184.58,71.59425997]
[1755543153327,0.06,184.59,184.58,72.25425997]
[1755543153528,0.06,184.59,184.58,74.42563497]
[1755543153832,0.06,184.59,184.58,68.10908004]
[1755543154032,0.76,184.59,184.58,62.69137498]
[1755543154836,0.06,184.59,184.58,68.10908004]
[1755543155626,0.06,184.59,184.58,73.76563497]
[1755543156147,0.06,184.59,184.58,74.42563497]
[1755543156347,0.06,184.59,184.58,89.53185054]
[1755543159452,0.06,184.59,184.58,83.87529561]
[1755543159648,0.06,184.59,184.58,89.53185054]
[1755543163069,1e-08,184.59,184.58,89.53185054]
[1755543163570,1e-08,184.59,184.58,51.21185054]
[1755543163740,1e-08,184.59,184.58,89.49185054]
[1755543167066,0.06,184.6,184.59,42.7236271]
[1755543167265,0.06,184.6,184.59,48.38018203]
[1755543167639,0.06,184.6,184.59,49.07018203]
[1755543169957,0.06,184.63,184.6,15.10621557]
[1755543170163,0.06,184.63,184.62,46.7627705]
[1755543170860,0.06,184.63,184.62,22.9334395]
[1755543171067,0.72,184.63,184.62,17.27688457]
[1755543171375,0.72,184.63,184.62,13.24375518]
[1755543171552,0.06,184.63,184.62,13.24375518]
[1755543171966,0.06,184.63,184.62,11.07308618]
[1755543172166,0.72,184.63,184.62,5.41653125]
[1755543173850,0.06,184.63,184.62,11.07308618]
[1755543174463,0.06,184.63,184.62,26.17930175]
[1755543174858,0.06,184.63,184.62,26.86930175]
[1755543175256,0.06,184.63,184.62,26.17930175]
[1755543175939,0.06,184.63,184.62,48.37930172]
[1755543177272,0.06,184.63,184.62,42.72274679]
[1755543177447,0.06,184.63,184.62,48.37930172]
[1755543177653,0.06,184.63,184.62,50.54985272]
[1755543179251,0.06,184.63,184.62,51.23985272]
[1755543181242,0.06,184.63,184.62,50.54985272]
[1755543181443,0.1,184.65,184.64,20.7627705]
[1755543181683,0.1,184.65,184.64,81.08277047]
[1755543182758,0.76,184.65,184.64,81.08277047]
[1755543183207,0.76,184.65,184.64,80.84216008]
[1755543184074,1e-08,184.67,184.66,41.10621557]
[1755543184290,1e-08,184.67,184.66,85.18493207]
[1755543184462,1e-08,184.67,184.66,86.41646786]
[1755543184774,1e-08,184.67,184.66,55.27600507]
[1755543185145,1e-08,184.67,184.66,98.97136302]
[1755543185346,1e-08,184.67,184.66,99.51289881]
[1755543185746,1e-08,184.67,184.66,98.97136302]
[1755543186973,1e-08,184.67,184.66,60.69136302]
[1755543187180,1e-08,184.67,184.66,98.95136302]
[1755543187690,0.69000001,184.67,184.66,72.11920145]
[1755543187873,1e-08,184.67,184.66,64.43812845]
[1755543188657,1e-08,184.67,184.66,59.48157352]
[1755543188883,1e-08,184.67,184.66,70.79468345]
[1755543189786,1e-08,184.67,184.66,64.43812845]
[1755543189978,0.69000001,184.67,184.66,64.43812845]
[1755543190187,0.69000001,184.67,184.66,58.78157352]
[1755543190490,0.69000001,184.67,184.66,64.43812845]
[1755543190706,0.69000001,184.67,184.66,86.47812842]
[1755543190890,0.69000001,184.67,184.66,58.78157352]
[1755543191484,1e-08,184.67,184.66,58.78157352]
[1755543191689,0.69000001,184.67,184.66,64.43812845]
[1755543191862,6.34655494,184.67,184.64,9.046204]
[1755543192061,6.34655494,184.67,184.65,38.26]
[1755543192062,0.69,184.66,184.65,38.26]
[1755543192785,0.69,184.66,184.65,43.67565123]
[1755543197400,1e-08,184.67,184.66,15.10621557]
[1755543197691,1e-08,184.67,184.66,21.4627705]
[1755543197893,1e-08,184.67,184.66,25.1565385]
[1755543198566,1e-08,184.67,184.66,46.95534149]
[1755543198771,1e-08,184.67,184.66,52.61189642]
[1755543199497,1e-08,184.67,184.66,46.95534149]
[1755543199674,1e-08,184.67,184.66,84.51534149]
[1755543199997,1e-08,184.67,184.66,90.17189642]
[1755543200292,0.69000001,184.67,184.66,65.71535792]
[1755543200815,0.69000001,184.67,184.66,60.29999997]
[1755543201000,0.69000001,184.67,184.66,65.71535792]
[1755543202386,1e-08,184.67,184.66,65.71535792]
[1755543204206,1e-08,184.67,184.66,71.37191285]
[1755543204412,1e-08,184.67,184.66,65.71535792]
[1755543204609,0.06,184.69,184.68,15.10621557]
[1755543204804,0.06,184.69,184.68,81.06277046]
[1755543204982,0.06,184.69,184.68,75.40621553]
[1755543205181,0.06,184.69,184.66,27.45535791]
[1755543205182,6.40655493,184.69,184.66,27.45535791]
[1755543205412,5.65655493,184.67,184.66,27.45535791]
[1755543205615,0.69,184.67,184.66,60.29999996]
[1755543206096,6.34655493,184.67,184.66,60.29999996]
[1755543207481,6.34655493,184.67,184.66,38.26]
[1755543207913,6.34655493,184.67,184.65,38.26]
[1755543208095,6.34655493,184.66,184.65,38.26]
[1755543208296,5.65655493,184.66,184.65,38.26]
[1755543208499,6.34655493,184.66,184.65,38.26]
[1755543209394,6.34655493,184.66,184.64,0.03]
[1755543209592,6.34655493,184.65,184.64,38.29]
[1755543210124,6.34655493,184.65,184.64,0.03]
[1755543210289,4.330363,184.65,184.64,0.03]
[1755543210487,6.34655493,184.67,184.64,0.03]
[1755543210706,5.65655493,184.66,184.65,38.28]
[1755543210905,6.34655493,184.66,184.65,38.28]
[1755543211107,9.98680817,184.66,184.64,38.33]
[1755543211301,9.29733449,184.65,184.64,38.33]
[1755543211503,9.98733449,184.65,184.64,0.03]
[1755543213196,6.34655493,184.65,184.64,0.03]
[1755543215597,9.98757417,184.65,184.64,0.03]
[1755543215799,6.34655493,184.65,184.64,0.03]
[1755543216807,0.69,184.65,184.64,0.03]
[1755543217011,5.65655493,184.66,184.64,0.03]
[1755543217412,6.34655493,184.66,184.64,0.03]
[1755543218014,0.06,184.67,184.64,38.31]
[1755543218326,0.06,184.67,184.65,6.37655493]
[1755543218527,0.06,184.67,184.66,43.93655493]
[1755543218700,0.06,184.67,184.66,44.65655493]
[1755543220228,0.06,184.67,184.66,50.07191288]
[1755543222905,0.06,184.67,184.66,65.17812845]
[1755543223228,1e-08,184.67,184.66,87.36028998]
[1755543227853,1e-08,184.67,184.66,29.62520291]
[1755543228029,0.71000001,184.67,184.66,5.41535795]
[1755543228256,0.71000001,184.67,184.66,43.69535795]
[1755543228623,1e-08,184.67,184.66,43.69535795]
[1755543229431,0.71000001,184.67,184.66,43.69535795]
[1755543232644,1e-08,184.67,184.66,43.69535795]
[1755543235032,1e-08,184.67,184.66,65.82535795]
[1755543235846,1e-08,184.67,184.66,72.20191288]
[1755543236265,1e-08,184.67,184.66,71.48191288]
[1755543239031,1e-08,184.67,184.66,65.82535795]
[1755543240349,0.71000001,184.67,184.66,60.41]
[1755543240583,14.05995478,184.67,184.66,0.03]
[1755543241459,10.01077153,184.67,184.66,0.03]
[1755543241656,14.06038418,184.67,184.66,0.03]
[1755543242777,8.40382925,184.67,184.66,0.03]
[1755543242975,14.06038418,184.67,184.66,0.03]
[1755543247251,3.6442166,184.67,184.66,0.03]
[1755543247486,1e-08,184.67,184.66,6.40655493]
[1755543248182,1e-08,184.67,184.66,0.03]
[1755543249180,0.69000001,184.67,184.66,0.03]
[1755543249382,0.69000001,184.67,184.66,5.44535795]
[1755543249889,1e-08,184.67,184.66,5.44535795]
[1755543250676,1e-08,184.67,184.66,11.80191288]
[1755543251367,1e-08,184.67,184.66,6.14535795]
[1755543251989,1e-08,184.67,184.66,5.44535795]
[1755543252796,1e-08,184.67,184.66,27.54535795]
[1755543255365,0.69000001,184.67,184.66,27.54535795]
[1755543255563,1e-08,184.67,184.66,27.54535795]
[1755543255776,6.34655494,184.67,184.66,22.13]
[1755543255979,14.04044989,184.67,184.66,0.03]
[1755543256398,9.99099556,184.67,184.66,0.03]
[1755543256569,14.04088848,184.67,184.66,0.03]
[1755543257269,9.99099556,184.67,184.66,0.03]
[1755543257465,14.04109008,184.67,184.66,0.03]
[1755543259993,19.45615479,184.67,184.66,0.03]
[1755543261000,14.04109008,184.67,184.66,0.03]
[1755543261887,8.38453515,184.67,184.66,0.03]
[1755543262081,14.04109008,184.67,184.66,0.03]
[1755543263186,19.45615479,184.67,184.66,0.03]
[1755543264395,34.70453193,184.67,184.64,0.03]
[1755543264607,5.65655493,184.65,184.64,0.03]
[1755543264777,23.31633824,184.65,184.64,0.03]
[1755543264975,24.00633824,184.65,184.64,0.03]
[1755543265384,19.95624372,184.65,184.64,0.03]
[1755543265587,24.0051856,184.65,184.64,0.03]
[1755543266399,19.45558866,184.65,184.64,0.03]
[1755543267277,31.41623788,184.63,184.62,0.03]
[1755543267488,44.90833688,184.63,184.62,0.03]
[1755543267690,45.59833688,184.63,184.62,0.03]
[1755543267888,45.59833688,184.63,184.6,0.03]
[1755543267889,15.24837714,184.62,184.6,0.03]
[1755543268100,15.24837714,184.62,184.59,0.03]
[1755543268101,0.14216157,184.6,184.59,0.03]
[1755543268276,13.492099,184.6,184.59,0.03]
[1755543268481,14.182099,184.6,184.59,0.03]
[1755543268785,19.83865393,184.6,184.59,0.03]
[1755543268981,11.45527143,184.59,184.58,0.03]
[1755543269183,24.38630328,184.59,184.58,0.03]
[1755543269383,25.25606549,184.59,184.58,0.03]
[1755543270688,19.59951056,184.59,184.58,0.03]
[1755543271489,15.55056868,184.59,184.58,0.03]
[1755543271687,19.58568968,184.59,184.58,0.03]
[1755543274390,15.55056868,184.59,184.58,0.03]
[1755543274690,19.5805447,184.59,184.58,0.03]
[1755543277609,15.55056868,184.59,184.58,0.03]
[1755543277807,19.57696366,184.59,184.58,0.03]
[1755543278851,19.57696366,184.59,184.56,0.03]
[1755543278852,26.14216157,184.57,184.56,0.03]
[1755543279052,77.8095521,184.57,184.56,0.03]
[1755543279222,78.5195521,184.57,184.56,0.03]
[1755543279936,77.8095521,184.57,184.56,0.03]
[1755543280318,78.5195521,184.57,184.56,0.03]
[1755543280537,77.8095521,184.57,184.56,0.03]
[1755543280912,83.22755069,184.57,184.56,0.03]
[1755543281111,83.93755069,184.57,184.56,0.03]
[1755543283631,79.91115571,184.57,184.56,0.03]
[1755543283815,83.93320468,184.57,184.56,0.03]
[1755543284328,83.9332236,184.57,184.56,0.03]
[1755543284727,83.93280891,184.57,184.56,0.03]
[1755543285143,39.22625398,184.57,184.56,0.75]
[1755543285446,44.88280891,184.57,184.56,0.75]
[1755543286145,31.7987165,184.57,184.56,0.75]
[1755543287410,37.21671509,184.57,184.56,0.75]
[1755543287614,11.21671509,184.57,184.56,0.75]
[1755543287919,11.21671509,184.57,184.56,0.03]
[1755543288124,37.21671509,184.57,184.56,0.03]
[1755543288353,11.21671509,184.57,184.56,0.03]
[1755543288536,5.7987165,184.57,184.56,0.03]
[1755543288719,31.7987165,184.57,184.56,0.03]
[1755543289451,26.0,184.57,184.56,0.03]
[1755543289744,31.65655493,184.57,184.56,0.75]
[1755543290752,31.65655493,184.57,184.56,0.03]
[1755543292416,37.07455352,184.57,184.56,0.03]
[1755543292747,31.41799859,184.57,184.56,0.03]
[1755543293047,37.07455352,184.57,184.56,0.03]
[1755543293423,31.65655493,184.57,184.56,0.03]
[1755543294334,35.68096411,184.57,184.56,0.03]
[1755543294831,4.02440918,184.57,184.56,0.75]
[1755543295035,31.71655493,184.59,184.56,0.75]
[1755543295237,4.02426007,184.58,184.56,0.75]
[1755543295739,4.02426007,184.58,184.57,0.72]
[1755543296055,31.71655493,184.59,184.57,0.72]
[1755543296254,4.02697915,184.58,184.56,11.10478925]
[1755543296465,0.06,184.59,184.56,5.44823432]
[1755543296631,0.06,184.59,184.56,0.03]
[1755543296822,0.06,184.59,184.56,0.75]
[1755543297146,5.71655493,184.59,184.57,0.72]
[1755543297357,5.71655493,184.59,184.56,5.44826085]
[1755543297518,0.06,184.59,184.58,0.72]
[1755543297724,5.71655493,184.59,184.58,0.72]
[1755543298368,5.71655493,184.59,184.56,6.16826085]
[1755543298528,5.71655493,184.59,184.56,5.44826085]
[1755543298853,0.06,184.59,184.57,0.72]
[1755543299058,5.71655493,184.59,184.57,0.72]
[1755543299860,0.06,184.58,184.57,0.72]
[1755543300378,0.06,184.58,184.57,6.13799859]
[1755543301084,0.06,184.58,184.57,11.79455352]
[1755543301671,0.06,184.58,184.57,6.13799859]
[1755543302290,0.06,184.58,184.57,0.72]
[1755543302511,5.71655493,184.58,184.56,22.13]
[1755543302915,5.65655493,184.57,184.56,22.13]
[1755543303783,7.67188142,184.57,184.56,0.75]
[1755543304107,0.06,184.58,184.56,6.16829215]
[1755543304597,0.06,184.58,184.57,0.72]
[1755543305713,0.06,184.58,184.57,6.37655493]
[1755543306617,0.06,184.58,184.57,11.79455352]
[1755543308929,0.06,184.58,184.57,33.89455352]
[1755543310648,0.06,184.58,184.57,49.00076909]
[1755543315046,0.06,184.58,184.57,43.34421416]
[1755543315353,0.06,184.58,184.57,49.00076909]
[1755543315554,0.06,184.58,184.57,66.53799859]
[1755543315847,0.06,184.58,184.57,65.81799859]
[1755543316055,0.06,184.58,184.56,0.03]
[1755543316056,6.39655493,184.58,184.56,0.03]
[1755543316259,6.33655493,184.57,184.56,0.03]
[1755543316561,10.37984368,184.57,184.56,0.03]
[1755543316753,14.0179761,184.57,184.56,0.03]
[1755543317748,6.33655493,184.57,184.56,0.03]
[1755543318554,15.79836819,184.57,184.56,0.03]
[1755543318751,10.3803696,184.57,184.56,0.03]
[1755543319256,10.38033812,184.57,184.56,0.03]
[1755543319452,9.70033812,184.57,184.56,0.03]
[1755543319656,0.06,184.58,184.56,6.39655493]
[1755543320045,0.06,184.58,184.56,0.03]
[1755543320856,0.74,184.58,184.56,0.03]
[1755543321438,0.06,184.58,184.56,0.03]
[1755543321956,0.06,184.58,184.56,5.68655493]
[1755543322251,0.06,184.58,184.56,0.03]
[1755543322457,0.74,184.58,184.56,0.03]
[1755543328852,0.06,184.58,184.56,0.03]
[1755543329359,0.06,184.58,184.57,6.36655493]
[1755543329748,0.06,184.58,184.57,22.1]
[1755543330059,0.74,184.58,184.57,22.1]
[1755543330636,0.06,184.58,184.57,22.1]
[1755543333363,0.74,184.58,184.57,22.1]
[1755543333549,8.43803124,184.58,184.57,22.1]
[1755543334562,14.09458617,184.58,184.56,0.03]
[1755543334756,14.17674774,184.57,184.56,0.03]
[1755543335448,19.59474633,184.57,184.56,0.03]
[1755543335645,13.9381914,184.57,184.56,0.03]
[1755543336054,8.52019281,184.57,184.56,0.03]
[1755543336238,19.59474633,184.57,184.56,0.03]
[1755543336447,39.24862743,184.57,184.56,0.03]
[1755543337367,35.19728731,184.57,184.56,0.03]
[1755543337552,39.24974552,184.57,184.56,0.03]
[1755543338075,77.54878046,184.57,184.56,0.03]
[1755543338594,73.00111493,184.57,184.56,0.03]
[1755543339051,57.89489936,184.57,184.56,0.03]
[1755543344048,72.82034584,184.57,184.56,0.03]
[1755543344249,51.6547392,184.57,184.56,0.03]
[1755543344452,52.49690077,184.57,184.56,0.03]
[1755543345190,14.19690077,184.57,184.56,0.03]
[1755543345385,40.19690077,184.57,184.56,0.03]
[1755543345977,45.61489936,184.57,184.56,0.03]
[1755543346487,41.56340621,184.57,184.56,0.03]
[1755543346690,45.61122115,184.57,184.56,0.03]
[1755543346986,39.95466622,184.57,184.56,0.03]
[1755543347157,39.3511543,184.57,184.56,0.03]
[1755543347368,41.42124464,184.57,184.56,0.03]
[1755543347697,45.46915289,184.57,184.56,0.03]
[1755543348052,41.42124464,184.57,184.56,0.03]
[1755543348395,45.46903501,184.57,184.56,0.03]
[1755543349276,45.61119658,184.57,184.56,0.03]
[1755543349652,44.91119658,184.57,184.56,0.03]
[1755543350152,33.83664306,184.57,184.56,0.03]
[1755543350352,39.49319799,184.57,184.56,0.03]
[1755543350676,7.69448149,184.57,184.56,0.03]
[1755543350989,0.06,184.58,184.56,6.35655493]
[1755543351153,4.1069542,184.58,184.57,0.67]
[1755543351556,0.06,184.58,184.57,0.67]
[1755543351961,0.06,184.58,184.57,6.32655493]
[1755543352506,0.06,184.58,184.57,11.74455352]
[1755543352803,0.06,184.58,184.57,6.08799859]
[1755543352983,0.06,184.58,184.57,11.74455352]
[1755543356902,0.06,184.58,184.57,26.85076909]
[1755543358107,0.06,184.58,184.57,29.02202709]
[1755543358304,0.06,184.58,184.57,13.91581152]
[1755543358520,0.06,184.58,184.57,8.25925659]
[1755543359005,0.06,184.58,184.57,7.58925659]
[1755543359194,0.06,184.58,184.57,28.18799859]
[1755543359989,0.06,184.58,184.57,33.84455352]
[1755543360396,0.06,184.59,184.57,33.84455352]
[1755543360397,0.06,184.59,184.58,15.10621557]
[1755543360601,0.06,184.6,184.58,15.10621557]
[1755543360602,0.06,184.6,184.58,21.4327705]
[1755543360909,0.06,184.6,184.59,60.25451165]
[1755543361108,0.06,184.62,184.59,60.25451165]
[1755543361109,0.06,184.62,184.6,15.10621557]
[1755543361306,0.06,184.62,184.61,5.65655493]
[1755543361707,0.06,184.63,184.62,15.10621557]
[1755543362014,0.06,184.63,184.62,26.84930175]
[1755543364508,0.06,184.63,184.62,5.41653125]
[1755543365299,0.06,184.63,184.62,6.08653125]
[1755543365819,0.06,184.63,184.62,5.41653125]
[1755543366801,0.06,184.63,184.62,44.34653125]
[1755543367127,0.06,184.63,184.62,50.00308618]
[1755543368604,0.06,184.63,184.62,52.17399118]
[1755543369025,0.06,184.63,184.62,46.51743625]
[1755543369238,0.06,184.63,184.62,43.67653125]
[1755543371014,0.06,184.63,184.62,65.77653125]
[1755543371601,0.73,184.63,184.62,65.77653125]
[1755543372020,0.06,184.63,184.62,65.77653125]
[1755543372410,0.73,184.63,184.62,60.36]
[1755543373128,6.38655493,184.63,184.62,60.36]
[1755543374799,0.73,184.63,184.62,60.36]
[1755543375027,6.38655493,184.63,184.62,60.36]
[1755543375336,0.06,184.63,184.62,66.45653125]
[1755543376315,0.06,184.63,184.62,72.11308618]
[1755543376517,0.06,184.63,184.62,66.45653125]
[1755543377237,0.06,184.63,184.62,72.11308618]
[1755543377620,0.06,184.63,184.62,66.45653125]
[1755543377940,0.06,184.63,184.62,65.77653125]
[1755543378114,0.06,184.63,184.62,66.45653125]
[1755543379827,0.06,184.63,184.62,68.62743525]
[1755543380918,0.06,184.63,184.62,89.39020575]
[1755543383226,0.06,184.63,184.62,83.73365082]
[1755543383425,0.06,184.63,184.62,89.39020575]
[1755543384023,1e-08,184.63,184.62,89.39020575]
[1755543384429,1e-08,184.63,184.62,83.73365082]
[1755543384632,1e-08,184.63,184.62,89.39020575]
[1755543387645,1e-08,184.63,184.62,83.05365082]
[1755543388020,0.67000001,184.63,184.62,67.94743525]
[1755543388227,1e-08,184.63,184.62,45.84743525]
[1755543391748,1e-08,184.63,184.62,67.94743525]
[1755543392783,0.06,184.73,184.63,15.10621557]
[1755543392939,5.65655493,184.68,184.64,38.26]
[1755543394051,5.65655493,184.68,184.66,5.41535795]
[1755543394258,5.65655493,184.68,184.67,38.26]
[1755543394643,6.32655493,184.68,184.67,38.26]
[1755543395165,0.67,184.68,184.67,38.26]
[1755543395350,6.32655493,184.68,184.67,38.26]
[1755543396341,6.32655493,184.68,184.67,43.67506471]
[1755543398167,0.67,184.68,184.67,43.67506471]
[1755543398349,6.32655493,184.68,184.67,43.67506471]
[1755543398553,5.65655493,184.68,184.67,43.67506471]
[1755543400839,0.65,184.7,184.67,43.67506471]
[1755543401037,5.65655493,184.68,184.67,43.67506471]
[1755543401552,6.30655493,184.68,184.67,43.67506471]
[1755543401759,5.65655493,184.68,184.67,43.67506471]
[1755543401961,6.30655493,184.68,184.67,43.67506471]
[1755543402678,10.36010607,184.68,184.67,38.24]
[1755543403048,4.70355114,184.68,184.67,43.65506471]
[1755543403362,4.05440248,184.68,184.67,43.65506471]
[1755543403674,5.65655493,184.69,184.67,43.65506471]
[1755543403874,9.71095707,184.68,184.67,43.65506471]
[1755543404170,4.05440214,184.68,184.67,43.65506471]
[1755543404374,5.65655493,184.68,184.67,43.65506471]
[1755543404556,9.71246543,184.68,184.67,43.65506471]
[1755543408604,9.71246543,184.68,184.67,38.24]
[1755543408790,9.71234803,184.68,184.67,38.24]
[1755543409280,9.71233509,184.68,184.67,38.24]
[1755543409585,10.36233509,184.68,184.67,38.24]
[1755543409769,9.71233509,184.68,184.67,38.24]
[1755543409964,9.71234167,184.68,184.67,43.65506471]
[1755543410268,9.71234167,184.68,184.67,44.32506471]
[1755543410769,4.05578674,184.68,184.67,44.32506471]
[1755543411472,4.05578674,184.68,184.67,43.65506471]
[1755543412177,5.65655493,184.69,184.67,43.65506471]
[1755543412383,4.05582842,184.68,184.67,43.65506471]
[1755543412595,9.71238335,184.68,184.67,43.65506471]
[1755543412777,4.05582842,184.68,184.67,43.65506471]
[1755543413105,9.71238335,184.68,184.67,43.65506471]
[1755543413695,9.71238335,184.68,184.67,38.24]
[1755543414362,9.71238335,184.68,184.67,43.65506471]
[1755543415069,4.05582842,184.68,184.67,43.65506471]
[1755543415393,4.05589068,184.68,184.67,44.32506471]
[1755543417085,4.05589068,184.68,184.67,43.65506471]
[1755543417286,4.05589068,184.68,184.67,43.68506471]
[1755543418477,5.65655493,184.69,184.67,43.68506471]
[1755543418683,4.05684606,184.68,184.67,43.68506471]
[1755543419295,4.05684606,184.68,184.67,38.27]
[1755543419494,9.71340099,184.68,184.67,38.27]
[1755543419893,10.36340099,184.68,184.67,38.27]
[1755543420197,10.36439757,184.68,184.67,38.27]
[1755543420382,9.71439757,184.68,184.67,38.27]
[1755543420974,9.71439757,184.68,184.67,0.03]
[1755543420975,10.36439757,184.68,184.67,0.03]
[1755543421382,15.77916906,184.68,184.67,0.03]
[1755543421676,10.36439757,184.68,184.67,0.03]
[1755543422275,15.77916906,184.68,184.67,0.03]
[1755543422999,15.92133063,184.68,184.67,0.03]
[1755543423174,0.14216157,184.67,184.65,0.03]
[1755543423374,19.57510956,184.68,184.65,0.03]
[1755543423375,4.85000421,184.66,184.65,0.03]
[1755543423577,4.70784264,184.66,184.65,0.03]
[1755543423777,9.71439757,184.66,184.65,0.03]
[1755543425188,9.71439757,184.66,184.65,0.7]
[1755543425605,4.05784264,184.66,184.65,0.7]
[1755543426398,38.95,184.7,184.65,6.11541974]
[1755543426576,5.65655493,184.68,184.66,0.67]
[1755543426775,4.05804424,184.67,184.66,0.67]
[1755543427085,9.71445077,184.67,184.66,0.67]
[1755543427284,4.05789584,184.67,184.66,0.67]
[1755543428227,4.05789584,184.67,184.66,38.91]